bitfinex/quotes_ETHUSD_20220123
["timestamp","ask_amount","ask_price","bid_price","bid_amount"]
[1642913243517,0.3997,2435.4,2435.3,1.43199999]
[1642913244325,0.00113685,2435.6,2435.4,2.9]
[1642913244822,0.00113685,2435.6,2435.5,1.42772126]
[1642913245024,0.00113685,2435.6,2435.3,1.43199999]
[1642913246271,1.44304646,2435.6,2435.3,1.43199999]
[1642913247171,0.00113685,2435.6,2435.3,1.43199999]
[1642913248173,0.00113685,2435.6,2435.4,4.40401043]
[1642913248374,0.00113685,2435.6,2435.4,1.33978941]
[1642913249175,0.00113685,2435.6,2435.3,1.43199999]
[1642913254679,1.17766692,2435.5,2435.3,1.43199999]
[1642913258125,3.244,2435.4,2435.3,1.43199999]
[1642913258326,3.244,2435.4,2434.5,0.09387894]
[1642913258327,1.85,2435.3,2434.5,0.09387894]
[1642913258724,1.85,2435.3,2434.6,0.00454738]
[1642913259124,1.15731295,2435.0,2434.6,0.00454738]
[1642913259328,1.3389,2435.4,2434.6,0.00454738]
[1642913259925,0.494,2435.4,2434.6,0.00454738]
[1642913260128,32.027019,2435.7,2434.6,0.07066663]
[1642913260326,1.54825269,2435.5,2434.9,1.12874746]
[1642913260529,1.54825269,2435.5,2434.8,0.01239991]
[1642913260725,1.54825269,2435.5,2435.0,0.00227369]
[1642913260974,1.54825269,2435.5,2434.9,0.00284211]
[1642913261176,1.54825269,2435.5,2434.6,0.00454738]
[1642913261579,1.51385335,2435.1,2434.6,0.00454738]
[1642913261780,32.027019,2435.7,2434.6,0.00454738]
[1642913262684,32.027019,2435.7,2434.6,2.87288794]
[1642913263086,32.027019,2435.7,2434.7,0.00397896]
[1642913263285,1.16620737,2435.4,2434.9,1.3608545]
[1642913263585,32.027019,2435.7,2435.0,0.00227369]
[1642913264187,32.027019,2435.7,2434.8,3.49750323]
[1642913264386,32.027019,2435.7,2434.9,0.00284211]
[1642913264845,1.46516732,2435.2,2434.9,0.00284211]
[1642913265237,1.46516732,2435.2,2434.6,3.4988829]
[1642913265636,32.027019,2435.7,2434.7,0.00397896]
[1642913266239,32.027019,2435.7,2434.7,2.83099242]
[1642913266439,32.027019,2435.7,2434.9,24.0]
[1642913266641,32.027019,2435.7,2435.5,1.35545243]
[1642913269074,32.027019,2435.7,2435.5,25.35545243]
[1642913269273,32.027019,2435.7,2435.6,2.76807731]
[1642913269478,0.182521,2436.4,2435.6,2.76807731]
[1642913269479,0.60187238,2436.8,2435.8,24.0]
[1642913269677,0.60187238,2436.8,2435.9,2.8313018]
[1642913269882,0.60187238,2436.8,2436.2,0.01234222]
[1642913270479,1.28451028,2437.2,2436.2,24.01234222]
[1642913270881,0.0096632,2437.1,2436.2,24.01234222]
[1642913271379,0.00909478,2437.0,2436.2,24.01234222]
[1642913271578,0.00909478,2437.0,2436.3,2.89204837]
[1642913271779,0.00852636,2436.9,2436.4,24.0]
[1642913272224,0.00795793,2436.8,2436.5,2.92199887]
[1642913272437,0.00795793,2436.8,2436.7,27.01292]
[1642913272631,42.3749846,2437.2,2436.7,27.01292]
[1642913272828,42.3749846,2437.2,2436.9,24.0]
[1642913273028,0.0096632,2437.1,2437.0,2.92385758]
[1642913273330,0.0096632,2437.1,2437.0,24.06292]
[1642913275983,0.0096632,2437.1,2436.8,0.06292]
[1642913276378,0.00909478,2437.0,2436.8,0.06292]
[1642913276779,1.48107775,2437.7,2436.8,0.06292]
[1642913276780,0.00852636,2436.9,2436.8,0.06292]
[1642913277482,0.00852636,2436.9,2436.8,3.01292]
[1642913277680,0.00852636,2436.9,2436.8,27.01292]
[1642913281627,0.00852636,2436.9,2436.8,28.33939025]
[1642913281929,2.636e-05,2436.9,2436.8,27.32536583]
[1642913282134,2.03114769,2438.6,2436.9,3.02132331]
[1642913282328,2.03114769,2438.6,2437.4,0.01257357]
[1642913282532,0.0073895,2438.2,2437.5,0.06292]
[1642913282728,0.0073895,2438.2,2437.5,0.55692]
[1642913282927,0.00682108,2438.1,2437.6,24.0]
[1642913283127,0.00682108,2438.1,2437.7,0.06292]
[1642913283327,1.42956212,2438.6,2437.7,0.06292]
[1642913283328,0.00625265,2438.0,2437.8,0.06722782]
[1642913283578,0.00625265,2438.0,2437.9,0.06292]
[1642913283781,0.04,2438.6,2437.9,0.06292]
[1642913284180,1.10493915,2438.4,2437.6,24.06292]
[1642913284378,0.00909477,2438.5,2437.6,24.06292]
[1642913284379,0.00909477,2438.5,2437.7,2.82764185]
[1642913284578,0.00795793,2438.3,2437.8,24.06292]
[1642913284778,0.00852635,2438.4,2437.8,24.06292]
[1642913284979,0.0073895,2438.2,2437.8,24.06292]
[1642913285181,0.00795793,2438.3,2437.8,24.06292]
[1642913285377,0.00682108,2438.1,2437.8,24.06292]
[1642913285578,0.0073895,2438.2,2437.8,24.06292]
[1642913285779,0.00625265,2438.0,2437.8,24.06292]
[1642913285979,1.18153848,2438.5,2437.9,2.21292]
[1642913285980,0.00682108,2438.1,2437.9,2.21292]
[1642913286179,1.18153848,2438.5,2437.9,2.15]
[1642913286583,0.00852635,2438.4,2437.9,2.15]
[1642913286978,0.00795793,2438.3,2437.9,2.15]
[1642913287436,0.0073895,2438.2,2437.8,24.0]
[1642913287838,0.00682108,2438.1,2437.8,24.0]
[1642913288035,0.00682108,2438.1,2438.0,2.76292]
[1642913288236,0.04,2438.6,2438.1,24.0]
[1642913288638,0.00909477,2438.5,2438.2,0.06292]
[1642913288838,0.00909477,2438.5,2438.4,25.91292]
[1642913289037,0.04,2438.6,2438.4,25.85]
[1642913290843,0.04,2438.6,2438.2,0.06292]
[1642913292285,1.39216795,2439.0,2438.2,0.06292]
[1642913292683,0.01136847,2438.9,2438.2,0.06292]
[1642913293084,0.01080004,2438.8,2438.2,0.06292]
[1642913293484,0.01023162,2438.7,2438.2,0.06292]
[1642913293884,1.31893593,2438.6,2438.2,0.06292]
[1642913294286,0.00909477,2438.5,2438.0,0.06292]
[1642913294730,1.30927273,2438.6,2438.0,0.01292]
[1642913294932,1.30927273,2438.6,2438.1,0.00227369]
[1642913295332,1.23815606,2438.4,2437.7,0.00454739]
[1642913295930,1.23815606,2438.4,2437.6,0.00511581]
[1642913296532,1.30927273,2438.6,2437.6,0.00511581]
[1642913296735,1.30927273,2438.6,2437.7,0.01292]
[1642913297132,3.9493,2438.9,2437.8,0.00397896]
[1642913297133,1.46441964,2438.2,2437.8,0.00397896]
[1642913297536,1.46441964,2438.2,2437.6,0.00511581]
[1642913297935,0.00170527,2438.8,2437.6,0.00511581]
[1642913298138,0.00170527,2438.8,2437.7,0.01292]
[1642913298337,5.0551,2439.0,2437.7,0.01292]
[1642913298338,0.00113685,2438.7,2437.7,0.08012575]
[1642913298576,0.00113685,2438.7,2437.8,0.00397896]
[1642913298775,0.0022737,2438.9,2437.9,0.07106676]
[1642913298974,2.24523209,2438.8,2437.9,24.07106676]
[1642913299177,2.24523209,2438.8,2438.0,3.13483764]
[1642913299375,0.00113685,2438.7,2438.0,3.13483764]
[1642913299576,0.00113685,2438.7,2438.1,0.01519369]
[1642913299775,0.00113685,2438.7,2438.1,24.01519369]
[1642913299979,0.00113685,2438.7,2438.2,0.00170527]
[1642913301581,1.25784298,2438.5,2438.2,0.00170527]
[1642913301981,1.25784298,2438.5,2438.0,0.00284212]
[1642913302238,1.25784298,2438.5,2437.8,0.01292]
[1642913302439,1.25784298,2438.5,2437.9,0.00341054]
[1642913302641,2.73047486,2438.5,2437.9,0.00341054]
[1642913303841,1.47263188,2438.5,2437.9,0.00341054]
[1642913304240,0.00113685,2438.7,2437.9,0.00341054]
[1642913304440,0.00113685,2438.7,2438.0,0.09853718]
[1642913304840,0.00113685,2438.7,2438.1,0.00227369]
[1642913305041,1.34292397,2438.6,2438.1,0.00227369]
[1642913305241,1.24121049,2438.4,2438.1,0.00227369]
[1642913305442,1.24121049,2438.4,2437.9,0.00341054]
[1642913309380,1.24121049,2438.4,2438.0,0.14533372]
[1642913309824,1.24121049,2438.4,2438.1,0.00227369]
[1642913310225,1.24121049,2438.4,2437.9,0.00341054]
[1642913312433,1.24121049,2438.4,2437.7,0.00454739]
[1642913313235,1.24121049,2438.4,2437.7,0.01746739]
[1642913313698,1.24121049,2438.4,2437.8,0.00397896]
[1642913314699,1.24121049,2438.4,2437.9,0.08847017]
[1642913314901,1.24121049,2438.4,2437.9,0.08751115]
[1642913315098,1.24121049,2438.4,2438.0,0.00284212]
[1642913315301,1.24121049,2438.4,2438.1,0.1024278]
[1642913315501,0.00113685,2438.7,2438.1,0.1024278]
[1642913315700,0.00113685,2438.7,2438.2,0.00170527]
[1642913316000,0.00113685,2438.7,2437.9,0.00341054]
[1642913316407,0.00113685,2438.7,2437.9,26.90048205]
[1642913316604,0.00113685,2438.7,2438.0,0.01292]
[1642913316803,0.00113685,2438.7,2438.1,24.0]
[1642913317003,0.00113685,2438.7,2438.1,24.00227369]
[1642913317233,0.00113685,2438.7,2438.2,0.00170527]
[1642913317822,0.00113685,2438.7,2438.2,0.01462527]
[1642913318222,0.00113685,2438.7,2438.3,0.00113684]
[1642913319035,0.00113685,2438.7,2438.3,24.00113684]
[1642913323784,0.00113685,2438.7,2438.3,0.00113684]
[1642913324290,0.00113685,2438.7,2438.2,0.00170527]
[1642913328336,0.36900905,2438.6,2438.2,0.00170527]
[1642913330882,1.22374295,2438.9,2438.2,0.00170527]
[1642913330883,0.36900905,2438.8,2438.2,0.00170527]
[1642913331282,0.37071432,2438.8,2438.2,0.00170527]
[1642913332081,0.36900905,2438.7,2438.2,0.00170527]
[1642913333337,0.36900905,2438.7,2438.3,24.0]
[1642913333537,0.36900905,2438.7,2438.5,0.06551749]
[1642913333737,0.36900905,2438.7,2438.5,24.0]
[1642913333938,0.36900905,2438.7,2438.6,0.01292]
[1642913334136,0.36900905,2438.7,2438.6,1.76292]
[1642913334735,0.36900905,2438.7,2438.5,24.0]
[1642913335235,0.36900905,2438.7,2438.2,0.49570527]
[1642913335436,0.36900905,2438.7,2438.2,0.00170527]
[1642913335635,0.36900905,2438.7,2438.0,0.01292]
[1642913335636,1.17328619,2438.6,2438.3,0.00113684]
[1642913335839,1.17328619,2438.6,2438.1,0.00227369]
[1642913336077,0.36900905,2438.5,2438.1,0.00227369]
[1642913336473,2.00144661,2438.5,2438.1,0.00227369]
[1642913336773,0.39229924,2438.4,2438.1,0.00227369]
[1642913337185,0.36900905,2438.3,2438.1,0.00227369]
[1642913337382,0.76130829,2438.3,2438.1,0.00227369]
[1642913337583,0.39229924,2438.2,2438.1,0.00227369]
[1642913337781,0.39229924,2438.2,2438.1,0.01422393]
[1642913338583,0.76130829,2438.2,2438.1,0.01422393]
[1642913338984,0.76130829,2438.2,2438.1,0.00130393]
[1642913339383,0.76130829,2438.2,2437.8,0.0030092]
[1642913339584,0.3982423,2438.1,2437.8,0.0030092]
[1642913339834,0.76725135,2438.1,2437.8,0.0030092]
[1642913340629,0.37258932,2438.0,2437.8,0.0030092]
[1642913341034,0.36900905,2437.9,2437.8,0.0030092]
[1642913341335,0.74159837,2437.9,2437.5,0.00471447]
[1642913341535,0.74159837,2437.9,2437.6,0.01292]
[1642913341736,0.37258932,2437.8,2437.5,0.00471447]
[1642913341937,1.62857571,2437.8,2437.7,0.00357763]
[1642913342136,1.62857571,2437.8,2437.4,0.0052829]
[1642913342343,0.37258932,2437.7,2437.4,0.0052829]
[1642913343233,1.59380019,2437.7,2437.4,0.0052829]
[1642913343480,0.39681507,2437.6,2437.4,0.0052829]
[1642913344081,0.39681507,2437.5,2437.4,0.0052829]
[1642913344482,0.30906684,2437.5,2437.4,0.0052829]
[1642913344886,0.30906684,2437.5,2437.1,0.00698817]
[1642913345086,0.30906684,2438.2,2437.1,0.00698817]
[1642913345987,1.47924859,2437.9,2437.1,0.00698817]
[1642913346185,1.57616843,2437.8,2437.1,0.00698817]
[1642913346385,1.26710159,2437.8,2437.1,0.00698817]
[1642913347837,2.62282911,2437.8,2437.1,0.00698817]
[1642913350238,2.62282911,2437.8,2436.7,24.0]
[1642913350439,0.00341054,2437.7,2436.8,3.49081178]
[1642913350640,0.00341054,2437.7,2436.9,24.0]
[1642913350838,0.00284212,2437.6,2436.8,0.00170527]
[1642913351092,1.25637009,2437.4,2437.0,0.00184033]
[1642913351286,1.25637009,2437.4,2436.7,3.49437594]
[1642913351485,1.25637009,2437.4,2436.6,0.00411402]
[1642913351684,1.25637009,2437.4,2436.8,0.00297718]
[1642913351885,1.25637009,2437.4,2436.6,0.00411402]
[1642913352286,1.34018512,2437.1,2436.6,0.00411402]
[1642913352790,1.25637009,2437.4,2436.6,0.00411402]
[1642913353793,2.39786734,2437.4,2436.6,0.00411402]
[1642913356055,0.00100179,2437.5,2436.6,0.00411402]
[1642913356056,2.35242314,2437.0,2436.6,0.00411402]
[1642913356259,1.17007247,2437.0,2436.6,0.00411402]
[1642913357459,1.16490179,2437.5,2436.6,0.00411402]
[1642913358258,1.3718735,2437.2,2436.6,0.00411402]
[1642913358477,1.15370913,2436.9,2436.6,0.00411402]
[1642913359883,0.00100179,2437.5,2436.6,0.00411402]
[1642913360096,0.00100179,2437.5,2436.7,0.10171032]
[1642913360485,0.00100179,2437.5,2436.8,0.00297718]
[1642913360983,0.00100179,2437.5,2436.6,0.00411402]
[1642913361183,0.00100179,2437.5,2436.6,24.00411402]
[1642913361483,0.00100179,2437.5,2436.7,0.0035456]
[1642913361886,0.00100179,2437.5,2436.8,24.0]
[1642913362084,0.00100179,2437.5,2437.0,0.07172576]
[1642913362341,0.00100179,2437.5,2437.1,0.494]
[1642913362543,0.00100179,2437.5,2437.2,0.07913106]
[1642913362741,0.00100179,2437.5,2437.3,1.69662125]
[1642913362941,0.00100179,2437.5,2437.3,1.99662125]
[1642913363144,0.00100179,2437.5,2437.4,24.0]
[1642913363345,0.00100179,2437.5,2437.4,24.494]
[1642913364543,0.00100179,2437.5,2437.4,25.094]
[1642913364947,0.00100179,2437.5,2437.4,24.494]
[1642913365993,1.33499607,2438.4,2437.5,1.85]
[1642913366187,1.33499607,2438.4,2437.6,24.0]
[1642913366387,0.00454739,2438.3,2437.6,24.0]
[1642913366791,0.00397896,2438.2,2437.6,24.0]
[1642913367194,1.39698625,2438.1,2437.1,24.00127191]
[1642913367594,0.00284211,2438.0,2437.2,0.00170527]
[1642913367992,0.00227369,2437.9,2437.2,0.00170527]
[1642913368192,0.00227369,2437.9,2437.2,24.00170527]
[1642913368393,0.00170527,2437.8,2437.2,24.00170527]
[1642913368595,0.00170527,2437.8,2437.3,0.00113685]
[1642913368793,0.00113684,2437.7,2437.3,0.00113685]
[1642913368994,0.00113684,2437.7,2437.3,0.30113685]
[1642913369194,0.00113684,2437.7,2437.4,24.0]
[1642913369592,3.684e-05,2437.7,2437.5,1.0]
[1642913369840,3.684e-05,2437.7,2437.6,3.444]
[1642913370037,0.13819997,2439.0,2437.8,24.0]
[1642913370336,0.13819997,2439.0,2437.7,0.30076316]
[1642913370337,0.00682109,2438.9,2438.0,24.0]
[1642913370538,1.18725767,2438.7,2438.1,2.96820177]
[1642913370738,2.40039235,2438.7,2438.2,24.0]
[1642913370937,0.00511582,2438.6,2438.2,24.0]
[1642913371341,0.00454739,2438.5,2438.2,24.0]
[1642913371739,0.00397897,2438.4,2438.2,24.0]
[1642913372139,0.13819997,2439.0,2438.2,24.0]
[1642913372140,0.00341055,2438.3,2438.2,24.0]
[1642913372944,0.00341055,2438.3,2438.2,24.3]
[1642913373147,0.04,2439.1,2438.4,0.10401798]
[1642913373344,54.89934322,2439.3,2438.5,2.4]
[1642913373345,54.44934322,2439.3,2438.5,2.4]
[1642913373589,0.00397896,2439.0,2438.7,24.0]
[1642913373790,0.00397896,2439.0,2438.8,0.494]
[1642913373987,54.39934322,2439.3,2438.9,24.0]
[1642913374288,0.00511581,2439.2,2438.9,24.0]
[1642913374688,0.00454738,2439.1,2438.9,24.0]
[1642913375087,0.00397896,2439.0,2438.9,24.0]
[1642913382988,0.00397896,2439.0,2438.5,24.0]
[1642913383190,0.02460819,2438.9,2438.5,24.0]
[1642913383387,0.00341054,2438.9,2438.5,24.0]
[1642913383588,0.01237738,2439.5,2438.5,24.0]
[1642913383589,0.00284211,2438.8,2438.5,24.0]
[1642913384091,0.00227369,2438.7,2438.5,24.0]
[1642913384289,0.00227369,2438.7,2438.5,23.95]
[1642913384490,0.00170527,2438.6,2438.5,23.95]
[1642913394336,0.00170527,2438.6,2438.5,24.55]
[1642913394532,0.00170527,2438.6,2438.5,27.50723437]
[1642913394932,0.04,2439.6,2438.6,2.95]
[1642913395231,0.04,2439.6,2438.5,27.50723437]
[1642913395232,0.00511581,2439.5,2438.8,23.95]
[1642913395431,0.00511581,2439.5,2439.0,23.95]
[1642913395632,0.00454738,2439.4,2439.1,2.83393042]
[1642913396095,0.00397896,2439.3,2439.2,23.95]
[1642913398798,0.00397896,2439.3,2438.7,24.494]
[1642913398999,0.00397896,2439.3,2438.7,24.0]
[1642913399199,0.00341054,2439.2,2438.7,24.0]
[1642913399599,0.00284211,2439.1,2438.7,24.0]
[1642913400039,0.00227369,2439.0,2438.8,2.76805311]
[1642913400238,0.00227369,2439.0,2438.9,24.0]
[1642913400538,0.04,2439.6,2438.9,24.0]
[1642913400737,0.04,2439.6,2439.0,2.78204175]
[1642913400940,0.00511581,2439.5,2439.0,2.78204175]
[1642913401136,0.00511581,2439.5,2438.9,24.0]
[1642913401337,0.00454738,2439.4,2439.0,2.76842176]
[1642913401537,0.00454738,2439.4,2438.9,24.0]
[1642913401739,0.00397896,2439.3,2438.9,24.0]
[1642913402140,0.00341054,2439.2,2438.9,24.0]
[1642913402541,0.00284211,2439.1,2438.9,24.0]
[1642913402740,0.00284211,2439.1,2439.0,27.04849548]
[1642913402941,0.04,2439.6,2439.0,24.3]
[1642913403141,0.04,2439.6,2439.0,26.3449]
[1642913403341,0.00511581,2439.5,2439.0,26.3449]
[1642913403879,0.04,2439.6,2439.0,26.3449]
[1642913403880,0.00454738,2439.4,2439.0,26.3449]
[1642913404083,0.00454738,2439.4,2439.1,1.48084963]
[1642913404280,0.00397896,2439.3,2439.1,1.78084963]
[1642913404483,0.00397896,2439.3,2439.2,24.3]
[1642913404682,0.04,2439.6,2439.2,24.794]
[1642913404880,0.04,2439.6,2439.3,24.0]
[1642913405081,0.00511581,2439.5,2439.3,27.25824038]
[1642913405284,0.00511581,2439.5,2439.3,24.494]
[1642913405481,0.00454738,2439.4,2439.3,24.494]
[1642913405684,0.00454738,2439.4,2439.3,24.0]
[1642913405882,0.00454738,2439.4,2438.6,0.494]
[1642913406086,0.00454738,2439.4,2438.6,24.0]
[1642913406290,0.00397896,2439.3,2438.6,24.0]
[1642913406686,0.00341054,2439.2,2438.6,24.0]
[1642913407090,0.00284211,2439.1,2438.6,24.0]
[1642913407532,0.00227369,2439.0,2438.6,24.0]
[1642913407733,1.40732444,2438.9,2438.4,0.09387894]
[1642913407935,1.20304946,2438.8,2437.8,7.48]
[1642913408138,1.2041863,2438.8,2437.8,7.48]
[1642913408338,1.2041863,2438.8,2437.9,0.00397897]
[1642913408540,1.42334596,2438.4,2437.9,0.00397897]
[1642913409042,1.47358496,2438.0,2437.8,0.00454739]
[1642913409647,2.57094597,2438.0,2437.8,0.00454739]
[1642913411084,1.47358496,2438.0,2437.8,0.00454739]
[1642913411281,3.8506,2438.3,2437.8,0.00454739]
[1642913412085,4.75418299,2438.2,2437.8,0.00454739]
[1642913412298,0.494,2438.1,2437.8,0.00454739]
[1642913412488,0.58085181,2438.1,2437.8,0.00454739]
[1642913412692,3.15539,2437.9,2437.8,0.00454739]
[1642913412895,4.19820214,2437.8,2436.5,0.02]
[1642913413087,9.99232275,2437.8,2436.5,0.02]
[1642913413290,1.32290304,2436.6,2436.5,0.02]
[1642913413488,2.95,2437.7,2436.6,3.72406706]
[1642913413489,3.99738175,2437.6,2436.6,3.72406706]
[1642913413889,3.26791322,2437.6,2436.6,3.72406706]
[1642913414090,0.494,2437.7,2436.6,3.72406706]
[1642913414491,1.48859373,2437.1,2436.6,3.72406706]
[1642913414731,1.38607948,2437.1,2436.6,3.72406706]
[1642913415333,1.39120588,2436.7,2436.6,3.72406706]
[1642913415734,1.39120588,2436.7,2436.6,3.73088814]
[1642913415935,1.39120588,2436.7,2436.6,3.68088814]
[1642913417139,1.39120588,2436.7,2436.0,0.02]
[1642913417140,2.95,2436.5,2436.0,0.02]
[1642913417343,2.95,2436.5,2435.1,7.4820454]
[1642913417344,0.01240657,2436.1,2435.1,7.4820454]
[1642913417544,2.6,2436.0,2435.1,7.4820454]
[1642913417738,2.6,2436.0,2435.1,0.0020454]
[1642913417943,2.6,2436.0,2435.5,0.00625266]
[1642913418140,2.2946684,2435.9,2435.5,0.00625266]
[1642913418504,2.2946684,2435.9,2434.4,2.80076674]
[1642913418505,2.06233072,2435.6,2434.4,2.70281214]
[1642913418700,2.06233072,2435.6,2434.2,24.0]
[1642913418701,0.494,2435.5,2434.2,24.0]
[1642913418902,0.494,2435.5,2434.5,0.00568424]
[1642913419198,0.494,2435.5,2434.4,1.47676684]
[1642913419199,1.11104526,2434.9,2434.4,1.47676684]
[1642913419399,0.494,2435.2,2434.4,1.47676684]
[1642913419600,0.04432103,2435.4,2434.5,2.80076674]
[1642913419904,0.04432103,2435.4,2434.6,0.00511581]
[1642913420104,3.87630527,2435.8,2434.6,0.00511581]
[1642913420301,3.87630527,2435.8,2434.6,2.80588255]
[1642913420500,6.739,2436.3,2434.6,2.80588255]
[1642913420501,0.00113684,2435.7,2435.0,0.01257558]
[1642913420903,1.49674711,2436.1,2435.1,0.0022737]
[1642913421103,1.39749317,2435.7,2435.1,0.0022737]
[1642913421500,1.39749317,2435.7,2434.6,0.00511581]
[1642913421501,0.494,2435.6,2434.6,0.00511581]
[1642913421700,1.45558519,2435.0,2434.6,0.00511581]
[1642913421900,0.6578,2435.6,2434.6,0.00511581]
[1642913422666,0.74465181,2435.6,2434.6,0.00511581]
[1642913422864,1.37483632,2435.2,2434.6,0.00511581]
[1642913423264,0.1638,2435.6,2434.6,0.00511581]
[1642913423466,0.13819997,2435.8,2434.6,0.00511581]
[1642913423965,0.00113684,2435.7,2434.6,0.00511581]
[1642913424364,1.30856558,2435.5,2434.6,0.00511581]
[1642913424768,0.00113684,2435.7,2434.6,0.00511581]
[1642913425171,0.00113684,2435.7,2434.6,3.83298662]
[1642913425366,0.00113684,2435.7,2434.7,24.0]
[1642913425570,0.00113684,2435.7,2434.7,24.00454739]
[1642913425772,0.00113684,2435.7,2434.8,0.00397897]
[1642913425982,1.40816012,2435.4,2434.8,0.00397897]
[1642913426179,1.40816012,2435.4,2434.6,0.00511581]
[1642913426983,0.00113684,2435.7,2434.6,0.00511581]
[1642913427384,0.00113684,2435.7,2434.6,0.49911581]
[1642913427886,0.00113684,2435.7,2434.7,0.00454739]
[1642913428082,0.00113684,2435.7,2434.9,1.17058137]
[1642913428283,0.00113684,2435.7,2434.7,0.00454739]
[1642913428483,0.00113684,2435.7,2435.0,0.00284212]
[1642913428683,0.16493684,2435.7,2434.7,0.00454739]
[1642913428884,0.00113684,2435.7,2434.7,0.00454739]
[1642913429285,0.00113684,2435.7,2434.7,25.50352976]
[1642913429484,0.00113684,2435.7,2434.7,24.00454739]
[1642913429728,0.00113684,2435.7,2434.8,0.00397897]
[1642913429930,0.1638,2435.6,2434.8,0.00397897]
[1642913430538,1.51149963,2435.5,2434.8,0.00397897]
[1642913430936,0.1638,2435.6,2434.8,0.00397897]
[1642913431637,0.1638,2435.6,2434.6,0.00511581]
[1642913432042,1.26217182,2435.6,2434.6,0.00511581]
[1642913432840,0.1638,2435.6,2434.6,0.00511581]
[1642913433043,0.00113684,2435.7,2434.6,1.00511581]
[1642913433239,0.16493684,2435.7,2434.8,0.01253275]
[1642913433489,0.1638,2436.1,2436.0,0.49367368]
[1642913433690,0.04432103,2436.3,2436.0,0.49367368]
[1642913433889,0.0022737,2436.1,2436.0,0.49367368]
[1642913434389,0.00454739,2436.5,2436.0,0.49367368]
[1642913434587,0.00454739,2436.5,2436.0,1.23817368]
[1642913434788,0.00397897,2436.4,2436.0,1.23817368]
[1642913435186,3.7139,2436.8,2436.0,1.23817368]
[1642913435187,0.00341055,2436.3,2436.0,1.23817368]
[1642913435390,0.00341055,2436.3,2436.1,0.10887925]
[1642913435591,0.00284212,2436.2,2436.0,24.49367368]
[1642913435986,0.1638,2437.1,2436.0,24.49367368]
[1642913435987,0.17175793,2437.1,2436.0,24.49367368]
[1642913436188,1.49957564,2437.1,2436.0,24.49367368]
[1642913436385,0.00738951,2437.0,2436.0,24.49367368]
[1642913436586,0.1638,2436.9,2436.0,24.49367368]
[1642913436788,0.17062109,2436.9,2436.0,24.49367368]
[1642913436987,0.00625266,2436.8,2436.0,24.49367368]
[1642913437254,0.1638,2436.7,2436.0,24.49367368]
[1642913437453,0.16948424,2436.7,2436.0,24.49367368]
[1642913437654,0.00511582,2436.6,2436.0,24.49367368]
[1642913438157,0.00454739,2436.5,2436.0,24.49367368]
[1642913438557,0.00397897,2436.4,2436.0,24.49367368]
[1642913438960,0.00341055,2436.3,2436.0,24.49367368]
[1642913439258,0.25065181,2437.0,2436.0,24.49367368]
[1642913439259,0.00284212,2436.2,2436.0,24.49367368]
[1642913439658,0.00682109,2436.9,2436.0,24.49367368]
[1642913439862,0.1638,2436.8,2436.0,24.49367368]
[1642913440058,0.00625266,2436.8,2436.0,24.49367368]
[1642913440259,0.00568424,2436.7,2436.0,24.49367368]
[1642913440664,0.00511582,2436.6,2436.0,0.49367368]
[1642913441092,0.00454739,2436.5,2436.0,0.49367368]
[1642913441490,0.08685181,2437.0,2436.0,0.49367368]
[1642913441491,0.00397897,2436.4,2436.0,0.49367368]
[1642913441890,0.08685181,2437.0,2436.0,0.49367368]
[1642913441891,0.00341055,2436.3,2436.0,0.49367368]
[1642913442291,0.00284212,2436.2,2436.0,0.49367368]
[1642913442690,0.1638,2436.7,2436.0,0.49367368]
[1642913442892,0.1638,2436.7,2436.0,24.49367368]
[1642913443094,0.00511582,2436.6,2436.1,0.08471639]
[1642913443396,0.00454739,2436.5,2436.1,0.08471639]
[1642913443791,0.00397897,2436.4,2436.0,25.97656429]
[1642913443991,0.00397897,2436.4,2436.0,24.49367368]
[1642913444292,0.00341055,2436.3,2436.0,0.49367368]
[1642913444733,0.00284212,2436.2,2436.0,0.49367368]
[1642913445133,0.61198226,2437.0,2436.0,0.49367368]
[1642913445134,0.1638,2436.9,2436.0,0.49367368]
[1642913445535,0.00625266,2436.8,2436.0,0.49367368]
[1642913445834,0.61198226,2437.0,2436.0,24.49367368]
[1642913445835,0.00568424,2436.7,2436.0,24.49367368]
[1642913446236,0.00511582,2436.6,2436.1,1.22298296]
[1642913446438,0.00511582,2436.6,2436.2,24.0]
[1642913446741,0.00454739,2436.5,2436.3,3.11108145]
[1642913446936,0.00454739,2436.5,2436.4,24.0]
[1642913447138,3.89519979,2437.9,2436.4,24.494]
[1642913447139,0.1638,2437.6,2436.4,24.494]
[1642913447341,0.1638,2437.7,2436.8,1.19256893]
[1642913447541,0.00909478,2437.3,2436.9,24.0]
[1642913447939,0.00852636,2437.2,2436.9,24.0]
[1642913448338,0.00795793,2437.1,2436.9,24.0]
[1642913448792,0.00738951,2437.0,2436.9,24.0]
[1642913452633,0.00738951,2437.0,2436.9,25.19125283]
[1642913453136,0.00738951,2437.0,2436.9,24.0]
[1642913453539,0.1638,2437.8,2437.4,0.01477901]
[1642913453940,0.00397896,2437.7,2437.4,0.01477901]
[1642913454337,0.00341054,2437.6,2437.4,0.01477901]
[1642913454740,0.00284212,2437.5,2437.4,0.01477901]
[1642913456393,0.16664212,2437.5,2437.4,0.01477901]
[1642913456591,1.37244033,2437.5,2437.4,0.01477901]
[1642913457189,0.00284212,2437.5,2437.4,0.01477901]
[1642913457397,0.00284212,2437.5,2437.4,2.01477901]
[1642913458398,0.00284212,2437.5,2437.4,26.01477901]
[1642913460345,3.87662103,2438.5,2437.5,2.99715788]
[1642913460346,0.1638,2438.4,2437.5,2.99715788]
[1642913460546,0.1638,2438.4,2437.5,29.83340614]
[1642913460745,0.00341054,2438.1,2437.5,29.83340614]
[1642913460950,0.00341054,2438.1,2437.5,26.99715788]
[1642913461149,0.00284211,2438.0,2437.5,26.99715788]
[1642913461554,0.00227369,2437.9,2437.5,26.99715788]
[1642913461951,0.00170527,2437.8,2437.5,26.99715788]
[1642913462353,0.00113684,2437.7,2437.5,2.99715788]
[1642913462750,0.00227369,2437.9,2437.5,2.99715788]
[1642913463155,0.00170527,2437.8,2437.5,2.99715788]
[1642913463601,0.00113684,2437.7,2437.5,2.99715788]
[1642913463999,0.16777896,2438.2,2437.5,2.99715788]
[1642913464201,0.16777896,2438.2,2437.4,0.01477901]
[1642913464202,0.00397896,2438.2,2437.4,0.01477901]
[1642913464398,0.1638,2438.1,2437.6,3.0]
[1642913464699,0.00284211,2438.0,2437.6,3.0]
[1642913465098,0.1638,2438.4,2437.6,27.0]
[1642913465099,0.00227369,2437.9,2437.6,27.0]
[1642913465500,0.00170527,2437.8,2437.6,3.0]